fUSD/lending_fUSD_20260311
["ID","MTS","AMOUNT","RATE_DAILY","PERIOD"]
[408197480,1773214232757,-390.0,0.00016225,2]
[408197481,1773214232766,-524.18840941,0.00016314,2]
[408197482,1773214232775,-1223.0,0.00016323,2]
[408197483,1773214232786,-500.0,0.00016721,2]
[408197484,1773214232795,-255.32887271,0.00016954,2]
[408197485,1773214233009,-150.0,0.00016954,2]
[408197486,1773214233018,-150.0,0.00016954,2]
[408197487,1773214233027,-150.0,0.00016954,2]
[408197488,1773214233039,-500.0,0.00016954,2]
[408197489,1773214233048,-250.0,0.00016954,2]
[408197490,1773214233057,-250.0,0.00016954,2]
[408197491,1773214233067,-150.0,0.00016954,2]
[408197492,1773214233076,-150.0,0.00016954,2]
[408197493,1773214233086,-150.0,0.00016954,2]
[408197494,1773214233096,-150.0,0.00016954,2]
[408197495,1773214233105,-150.0,0.00016954,2]
[408197496,1773214233114,-150.0,0.00016954,2]
[408197497,1773214233124,-503.0,0.00017,2]
[408197498,1773214233133,-150.0,0.00017009,2]
[408197499,1773214233142,-150.0,0.00017009,2]
[408197500,1773214233152,-150.0,0.00017009,2]
[408197501,1773214233162,-500.0,0.00017009,2]
[408197502,1773214233171,-150.0,0.00017009,2]
[408197503,1773214233182,-150.0,0.00017009,2]
[408197504,1773214233192,-200.0,0.00017009,2]
[408197505,1773214233202,-150.0,0.00017009,2]
[408197506,1773214233212,-150.0,0.00017064,2]
[408197507,1773214233222,-512.63986513,0.00017064,2]
[408197508,1773214233231,-150.0,0.00017064,2]
[408197509,1773214233240,-200.0,0.00017064,2]
[408197510,1773214233250,-150.0,0.00017064,2]
[408197511,1773214233269,-150.0,0.00017118,2]
[408197512,1773214233279,-150.0,0.00017173,2]
[408197513,1773214233289,-250.0,0.00017228,2]
[408197514,1773214233299,-587.0,0.00017702,2]
[408197515,1773214233308,-295.15547733,0.00017808,2]
[408197516,1773214233318,-2000.0,0.00018024,2]
[408197517,1773214233329,-2000.0,0.00018035,2]
[408197518,1773214233339,-3240.0,0.00018154,2]
[408197519,1773214233350,-1528.85,0.00018182,2]
[408197520,1773214233361,-200.0,0.00018246,2]
[408197521,1773214233371,-500.0,0.00018246,2]
[408197522,1773214233381,-329.74,0.00018265,2]
[408197523,1773214233390,-1500.0,0.00018432,2]
[408197524,1773214233400,-3495.75,0.00018485,2]
[408197525,1773214233410,-1528.85,0.00018637,2]
[408197526,1773214233420,-287.73245241,0.00018814,2]
[408197527,1773214233431,-1265.09428998,0.00018999,2]
[408197528,1773214233440,-500.0,0.00018999,2]
[408197529,1773214233451,-578.20924308,0.00018999,2]
[408197530,1773214233461,-174.61919141,0.00018999,2]
[408197531,1773214233471,-500.0,0.0001905,2]
[408197532,1773214233480,-500.0,0.0001905,2]
[408197533,1773214233490,-500.0,0.0001905,2]
[408197534,1773214233500,-500.0,0.00019054,2]
[408197535,1773214233509,-350.0,0.0001909,2]
[408197536,1773214233519,-1528.85,0.00019091,2]
[408197537,1773214233529,-500.0,0.00019109,2]
[408197538,1773214233538,-350.0,0.00019155,2]
[408197539,1773214233548,-500.0,0.00019164,2]
[408197540,1773214233557,-1874.0,0.000192,2]
[408197541,1773214233568,-4633.89,0.00019214,2]
[408197542,1773214233577,-500.0,0.00019219,2]
[408197543,1773214233586,-500.0,0.00019274,2]
[408197544,1773214233596,-329.74,0.00019279,2]
[408197545,1773214233606,-500.0,0.00019329,2]
[408197546,1773214233616,-823.0,0.00019379,2]
[408197547,1773214233628,-500.0,0.00019384,2]
[408197548,1773214233638,-2544.71769995,0.00019394,2]
[408197549,1773214233648,-485.24,0.00019405,2]
[408197550,1773214233658,-500.0,0.00019439,2]
[408197551,1773214233667,-533.36,0.00019454,2]
[408197552,1773214233678,-500.0,0.00019494,2]
[408197553,1773214233687,-1528.85,0.00019546,2]
[408197554,1773214233696,-181.08010149,0.00019547,2]
[408197555,1773214233706,-500.0,0.00019549,2]
[408197556,1773214233715,-1000.0,0.00019594,2]
[408197557,1773214233725,-500.0,0.00019604,2]
[408197558,1773214233735,-17953.8788,0.00019629,2]
[408197559,1773214233746,-179.348,0.00019659,2]
[408197560,1773214233755,-4993.172,0.00019659,2]
[408197561,1773214233764,-501.15105825,0.00019673,2]
[408197562,1773214233775,-500.0,0.00019673,2]
[408197563,1773214233786,-600.0,0.00019677,2]
[408197564,1773214233795,-485.24,0.00019679,2]
[408197565,1773214233803,-848.0,0.0001968,2]
[408197566,1773214233812,-200.0,0.00019704,2]
[408197567,1773214233823,-533.36,0.00019728,2]
[408197568,1773214233832,-277.30259241,0.0001977,2]
[408197569,1773214233841,-524.5,0.0001979,3]
[408197570,1773214233850,-992.98,0.00019796,2]
[408197571,1773214233859,-3664.39320209,0.000198,2]
[408197572,1773214233991,-4338.68127377,0.000198,2]
[408197573,1773214234002,-3284.28962414,0.000198,2]
[408197574,1773214234011,-1788.95962383,0.000198,2]
[408197575,1773214234020,-978.35839,0.000198,2]
[408197576,1773214234029,-978.3584,0.000198,2]
[408197577,1773214234038,-2000.0,0.000198,2]
[408197578,1773214234047,-1788.95962376,0.00019811,2]
[408197579,1773214234056,-1788.95962376,0.00019822,2]
[408197580,1773214234065,-1788.95962376,0.00019833,2]
[408197581,1773214234074,-1000.0,0.0001984,2]
[408197582,1773214234083,-640.23901384,0.0001984,2]
[408197585,1773214238157,-359.76098616,0.0001984,2]
[408197586,1773214238167,-1000.0,0.0001984,2]
[408197587,1773214238176,-1000.0,0.0001984,2]
[408197588,1773214238185,-287.83990522,0.0001984,2]
[408197589,1773214238218,-712.16009478,0.0001984,2]
[408197590,1773214238228,-60.16789125,0.0001984,2]
[408197591,1773214238239,-939.83210875,0.0001984,2]
[408197592,1773214238248,-1000.0,0.0001984,2]
[408197593,1773214238257,-1000.0,0.0001984,2]
[408197594,1773214238266,-323.251,0.0001984,2]
[408197595,1773214238275,-1788.95962376,0.00019844,2]
[408197596,1773214238285,-1788.95962376,0.00019856,2]
[408197597,1773214238294,-1788.95962376,0.00019867,2]
[408197598,1773214238303,-1788.95962376,0.00019878,2]
[408197599,1773214238313,-1788.95962376,0.00019889,2]
[408197600,1773214238324,-200.0,0.0001989,2]
[408197601,1773214238335,-2500.0,0.00019899,2]
[408197602,1773214238346,-500.0,0.00019899,2]
[408197603,1773214238356,-513.03817385,0.00019899,2]
[408197604,1773214238366,-261.45915393,0.00019899,2]
[408197605,1773214238376,-1000.0,0.000199,2]
[408197606,1773214238385,-5016.88383534,0.000199,2]
[408197607,1773214238395,-1788.95962376,0.000199,2]
[408197608,1773214238405,-551.4252449,0.000199,2]
[408197609,1773214238414,-2786.3833,0.000199,2]
[408197610,1773214238425,-4223.96464587,0.000199,2]
[408197611,1773214238435,-1552.71135747,0.000199,2]
[408197612,1773214238444,-160.61307676,0.000199,2]
[408197613,1773214238453,-177.33230873,0.000199,2]
[408197614,1773214238462,-284.61,0.00019902,2]
[408197615,1773214238472,-350.0,0.00019913,2]
[408197616,1773214238482,-485.24,0.00019953,2]
[408197617,1773214238491,-350.0,0.00019955,2]
[408197618,1773214238500,-1000.0,0.00019958,2]
[408197619,1773214238509,-500.0,0.00019964,2]
[408197620,1773214238518,-500.0,0.00019964,2]
[408197621,1773214238527,-500.0,0.00019964,2]
[408197622,1773214238536,-500.0,0.00019964,2]
[408197623,1773214238545,-500.0,0.00019964,2]
[408197624,1773214238554,-500.0,0.00019964,2]
[408197625,1773214238563,-500.0,0.00019964,2]
[408197626,1773214238572,-500.0,0.00019964,2]
[408197627,1773214238582,-500.0,0.00019964,2]
[408197628,1773214238591,-500.0,0.00019964,2]
[408197629,1773214238600,-222.74903421,0.00019964,2]
[408197630,1773214238609,-500.0,0.00019964,2]
[408197631,1773214238618,-500.0,0.00019964,2]
[408197632,1773214238628,-500.0,0.00019964,2]
[408197633,1773214238637,-878.1725932,0.00019966,2]
[408197634,1773214238646,-2327.0684044,0.00019966,2]
[408197635,1773214238655,-1706.50344724,0.00019966,2]
[408197636,1773214238667,-270.59118896,0.00019966,2]
[408197637,1773214238676,-150.0,0.00019971,2]
[408197638,1773214238685,-500.0,0.00019973,2]
[408197639,1773214238694,-2062.91185913,0.00019973,2]
[408197640,1773214238705,-500.0,0.00019973,2]
[408197645,1773214240518,-3697.08814087,0.00019973,2]
[408197646,1773214240528,-621.0,0.00019973,2]
[408197647,1773214240541,-500.0,0.00019973,2]
[408197648,1773214240550,-500.97367586,0.00019973,2]
[408197649,1773214240560,-5691.1016268,0.00019977,2]
[408197650,1773214240569,-10703.3694357,0.00019977,2]
[408197651,1773214240578,-150.0,0.00019985,2]
[408197652,1773214240587,-2770.0,0.00019987,2]
[408197653,1773214240596,-257.93,0.0001999,2]
[408197654,1773214240605,-257.93,0.0001999,2]
[408197655,1773214240614,-257.93,0.0001999,2]
[408197656,1773214240623,-257.93,0.0001999,2]
[408197657,1773214240632,-257.93,0.0001999,2]
[408197658,1773214240642,-409.8902603,0.0001999,2]
[408197659,1773214240651,-409.8902603,0.0001999,2]
[408197660,1773214240660,-409.8902603,0.0001999,2]
[408197661,1773214240669,-353.4369477,0.00019993,2]
[408197662,1773214240678,-501.74301211,0.00019996,2]
[408197663,1773214240687,-151.0,0.00019997,2]
[408197664,1773214240696,-500.0,0.00019998,2]
[408197665,1773214240705,-500.0,0.00019998,2]
[408197666,1773214240715,-300.0,0.00019999,2]
[408197667,1773214240724,-666.0,0.00019999,2]
[408197668,1773214240733,-300.0,0.00019999,2]
[408197669,1773214240742,-300.0,0.00019999,2]
[408197670,1773214240750,-666.0,0.00019999,2]
[408197671,1773214240759,-310.89756555,0.00019999,2]
[408197672,1773214240768,-300.0,0.00019999,2]
[408197673,1773214240778,-300.0,0.00019999,2]
[408197674,1773214240787,-666.0,0.00019999,2]
[408197675,1773214240796,-500.0,0.00019999,2]
[408197676,1773214240806,-2691.3679889,0.00019999,2]
[408197677,1773214240824,-500.0,0.00019999,2]
[408197678,1773214240843,-500.0,0.00019999,2]
[408197679,1773214240857,-500.0,0.00019999,2]
[408197680,1773214240868,-1077.92009856,0.00019999,5]
[408197681,1773214240879,-1366.15796259,0.00019999,5]
[408197682,1773214240889,-1058.20411011,0.00019999,5]
[408197683,1773214240899,-500.0,0.00019999,2]
[408197684,1773214240909,-500.0,0.00019999,2]
[408197685,1773214240919,-490.0,0.00019999,2]
[408197686,1773214240929,-500.0,0.00019999,2]
[408197687,1773214240939,-500.0,0.00019999,2]
[408197688,1773214240948,-500.0,0.00019999,2]
[408197689,1773214240958,-500.0,0.00019999,2]
[408197690,1773214240968,-504.64296701,0.00019999,2]
[408197691,1773214240979,-500.0,0.00019999,2]
[408197692,1773214240988,-500.0,0.00019999,2]
[408197693,1773214240997,-500.0,0.00019999,2]
[408197694,1773214241006,-586.870057,0.00019999,2]
[408197695,1773214241018,-500.0,0.00019999,2]
[408197696,1773214241028,-500.0,0.00019999,2]
[408197697,1773214241037,-500.0,0.00019999,2]
[408197698,1773214241048,-503.86249418,0.00019999,2]
[408197699,1773214241057,-500.0,0.00019999,2]
[408197700,1773214241067,-500.0,0.00019999,2]
[408197701,1773214241076,-500.0,0.00019999,2]
[408197702,1773214241086,-500.0,0.00019999,2]
[408197703,1773214241096,-500.0,0.00019999,2]
[408197704,1773214241105,-500.0,0.00019999,2]
[408197705,1773214241115,-500.0,0.00019999,2]
[408197706,1773214241125,-500.0,0.00019999,2]
[408197707,1773214241134,-500.0,0.00019999,2]
[408197708,1773214241144,-500.0,0.00019999,2]
[408197709,1773214241153,-500.0,0.00019999,2]
[408197710,1773214241163,-500.0,0.00019999,2]
[408197711,1773214241172,-605.55782896,0.00019999,2]
[408197712,1773214241182,-500.0,0.00019999,2]
[408197713,1773214241192,-500.0,0.00019999,2]
[408197714,1773214241201,-500.0,0.00019999,2]
[408197715,1773214241211,-500.0,0.00019999,2]
[408197716,1773214241220,-500.0,0.00019999,2]
[408197717,1773214241232,-500.0,0.00019999,2]
[408197718,1773214241252,-500.0,0.00019999,2]
[408197719,1773214241273,-500.0,0.00019999,2]
[408197720,1773214241283,-500.0,0.00019999,2]
[408197721,1773214241296,-500.0,0.00019999,2]
[408197722,1773214241317,-500.0,0.00019999,2]
[408197723,1773214241337,-500.0,0.00019999,2]
[408197724,1773214241350,-500.0,0.00019999,2]
[408197725,1773214241362,-500.0,0.00019999,2]
[408197726,1773214241374,-500.0,0.00019999,2]
[408197727,1773214241387,-500.0,0.00019999,2]
[408197728,1773214241398,-500.0,0.00019999,2]
[408197729,1773214241410,-500.0,0.00019999,2]
[408197730,1773214241421,-507.08615799,0.00019999,2]
[408197731,1773214241433,-500.0,0.00019999,2]
[408197732,1773214241445,-500.0,0.00019999,2]
[408197733,1773214241457,-505.20001815,0.00019999,2]
[408197734,1773214241467,-500.0,0.00019999,2]
[408197735,1773214241479,-500.0,0.00019999,2]
[408197736,1773214241490,-500.0,0.00019999,2]
[408197737,1773214241503,-500.0,0.00019999,2]
[408197738,1773214241516,-981.54307946,0.00019999,2]
[408197739,1773214241528,-183.07713092,0.00019999,2]
[408197740,1773214241539,-500.0,0.00019999,2]
[408197741,1773214241551,-468.17852206,0.00019999,2]
[408197742,1773214241564,-420.65875141,0.00019999,2]
[408197743,1773214241581,-3465.0,0.0002,2]
[408197744,1773214241592,-1006476.06177169,0.0002,2]
[408197745,1773214241609,-776.90309751,0.0002,2]
[408197746,1773214241627,-495.28295223,0.0002,2]
[408197781,1773214336632,561.73470973,8.6e-05,2]
[408197782,1773214340789,991.73346161,8.6e-05,2]
[408197795,1773214740851,1149.4,8.961e-05,2]
[408197796,1773214741060,739.54220066,9.432e-05,2]
[408197797,1773214741082,409.85779934,9.432e-05,2]
[408197798,1773214741269,1149.4,9.904e-05,2]
[408197799,1773214741571,1149.4,0.00010376,2]
[408197800,1773214741770,1149.4,0.00010847,2]
[408197801,1773214741977,1149.4,0.00011319,2]
[408197802,1773214742194,1149.4,0.00011791,2]
[408197803,1773214742414,1149.4,0.00012262,2]
[408197804,1773214742678,1149.4,0.00012734,2]
[408197805,1773214742909,1149.4,0.00013205,2]
[408197809,1773214807731,-161.0,0.0001343,2]
[408197810,1773214807760,-162.0,0.0001343,2]
[408197812,1773214867433,162.0,0.0001343,2]
[408197822,1773215106941,161.0,0.0001343,2]
[408197834,1773215432238,-434.57679024,0.00013677,2]
[408197835,1773215432249,-714.82320976,0.00013677,2]
[408197836,1773215432259,-1283.06515391,0.00013692,2]
[408197837,1773215432277,-496.2484482,0.00013692,2]
[408197838,1773215432319,-665.1793169,0.00013692,2]
[408197839,1773215432397,-463.76937507,0.00013692,2]
[408197840,1773215432408,-1161.97719936,0.000137,5]
[408197841,1773215432471,-79.02280064,0.000137,5]
[408197843,1773215432481,-223.27474466,0.00013707,2]
[408197844,1773215432490,-500.0,0.00013754,2]
[408197845,1773215432500,-191.4495529,0.00014049,2]
[408197846,1773215432509,-1149.4,0.00014149,2]
[408197847,1773215432519,-238.639475,0.00014292,7]
[408197848,1773215432528,-180.64,0.00014327,2]
[408197850,1773215432538,-665.0,0.00014398,2]
[408197853,1773215432547,-483.23283684,0.00014486,2]
[408197855,1773215432556,-483.23283684,0.00014486,2]
[408197857,1773215432566,-483.23283684,0.00014486,2]
[408197858,1773215432575,-483.23283684,0.00014486,2]
[408197859,1773215432584,-483.23283684,0.00014486,2]
[408197860,1773215432593,-483.23283684,0.00014486,2]
[408197861,1773215432602,-483.23283684,0.00014486,2]
[408197862,1773215432611,-483.23283684,0.00014486,2]
[408197863,1773215432620,-483.23283684,0.00014486,2]
[408197864,1773215432629,-483.23283684,0.00014486,2]
[408197865,1773215432639,-483.23283684,0.00014486,2]
[408197866,1773215432648,-1149.4,0.0001462,2]
[408197867,1773215432657,-250.0,0.00015,2]
[408197868,1773215432666,-500.0,0.00015,30]
[408197869,1773215432676,-500.0,0.00015,30]
[408197870,1773215432685,-500.0,0.00015,30]
[408197871,1773215432696,-500.0,0.00015,30]
[408197872,1773215432706,-500.0,0.00015,30]
[408197873,1773215432715,-250.73775205,0.00015,30]
[408197874,1773215432725,-174.39535369,0.00015,30]
[408197875,1773215432735,-339.563129,0.00015,30]
[408197876,1773215432744,-150.0,0.00015044,2]
[408197877,1773215432753,-250.0,0.00015045,2]
[408197878,1773215432762,-300.0,0.00015045,2]
[408197879,1773215432771,-1504.90790637,0.00015045,2]
[408197880,1773215432780,-600.0,0.00015045,2]
[408197881,1773215432790,-250.0,0.00015045,2]
[408197882,1773215432799,-5000.0,0.00015045,2]
[408197883,1773215432808,-300.0,0.00015045,2]
[408197884,1773215432817,-500.0,0.00015045,2]
[408197885,1773215432827,-342.0208413,0.00015045,2]
[408197886,1773215432836,-1149.4,0.00015092,2]
[408197887,1773215432845,-195.74494083,0.00015118,2]
[408197888,1773215432854,-500.39228547,0.0001536,2]
[408197889,1773215432863,-1149.4,0.00015564,2]
[408197890,1773215432872,-500.0,0.000156,2]
[408197891,1773215432881,-503.26645979,0.0001566,2]
[408197892,1773215432890,-191.44955289,0.00015661,2]
[408197893,1773215432900,-500.0,0.00015725,2]
[408197894,1773215432910,-501.38283497,0.00015725,2]
[408197895,1773215432919,-500.0,0.00015725,2]
[408197896,1773215432929,-500.0,0.00015725,2]
[408197897,1773215432938,-167.23452348,0.00015725,2]
[408197898,1773215432947,-1149.4,0.00016035,2]
[408197899,1773215432956,-500.0,0.00016273,2]
[408197900,1773215432965,-1149.4,0.00016507,2]
[408197901,1773215432974,-936.66930985,0.00016594,2]
[408197902,1773215432984,-501.97456647,0.00016625,2]
[408197903,1773215432993,-500.0,0.00016625,2]
[408197904,1773215433002,-500.0,0.00016625,2]
[408197905,1773215433011,-500.0,0.00016625,2]
[408197906,1773215433020,-500.0,0.00016625,2]
[408197907,1773215433029,-1023.0,0.00016678,2]
[408197908,1773215433039,-687.0,0.00016935,2]
[408197909,1773215433048,-175.64517432,0.00016935,2]
[408197910,1773215433057,-1149.4,0.00016978,2]
[408197911,1773215433066,-503.0,0.00017,2]
[408197912,1773215433076,-298.299344,0.0001715,7]
[408197913,1773215433085,-191.44955289,0.00017273,2]
[408197914,1773215433094,-65496.89086837,0.00017307,2]
[408197915,1773215433103,-31557.38,0.00017317,2]
[408197916,1773215433113,-1149.4,0.0001745,2]
[408197917,1773215433122,-150.0,0.00017534,2]
[408197918,1773215433132,-177.99151511,0.00017534,2]
[408197919,1773215433141,-150.0,0.00017534,2]
[408197920,1773215433151,-150.0,0.00017534,2]
[408197921,1773215433160,-150.0,0.00017534,2]
[408197922,1773215433169,-150.0,0.00017534,2]
[408197923,1773215433178,-150.0,0.00017534,2]
[408197924,1773215433188,-150.0,0.00017534,2]
[408197925,1773215433197,-166.66,0.00017551,2]
[408197926,1773215433206,-150.0,0.00017589,2]
[408197927,1773215433216,-150.0,0.00017589,2]
[408197928,1773215433225,-150.0,0.00017589,2]
[408197929,1773215433235,-150.0,0.00017644,2]
[408197930,1773215433244,-150.0,0.00017644,2]
[408197931,1773215433253,-150.0,0.00017644,2]
[408197932,1773215433263,-200.0,0.00017698,2]
[408197933,1773215433272,-200.0,0.00017698,2]
[408197934,1773215433281,-157.14225163,0.00017698,2]
[408197935,1773215433290,-150.99,0.00017728,2]
[408197936,1773215433300,-7655.43,0.00017728,2]
[408197937,1773215433309,-500.0,0.00017909,2]
[408197938,1773215433318,-1541.2,0.00017909,2]
[408197939,1773215433328,-334.04,0.00017909,2]
[408197940,1773215433341,-151.31,0.00017909,2]
[408197941,1773215433351,-150.0,0.00017909,2]
[408197942,1773215433360,-166.66,0.0001792,2]
[408197943,1773215433371,-1149.4,0.00017922,2]
[408197944,1773215433381,-150.0,0.00018289,2]
[408197945,1773215433391,-150.0,0.00018289,2]
[408197946,1773215433401,-150.0,0.00018289,2]
[408197947,1773215433411,-150.0,0.00018289,2]
[408197948,1773215433421,-150.0,0.00018289,2]
[408197949,1773215433430,-150.0,0.00018289,2]
[408197950,1773215433439,-150.0,0.00018289,2]
[408197951,1773215433449,-150.0,0.00018289,2]
[408197952,1773215433458,-150.0,0.00018289,2]
[408197953,1773215433468,-500.0,0.00018289,2]
[408197954,1773215433478,-166.66,0.0001829,2]
[408197955,1773215433488,-500.0,0.00018317,2]
[408197956,1773215433499,-150.0,0.00018344,2]
[408197957,1773215433509,-150.0,0.00018344,2]
[408197958,1773215433518,-150.0,0.00018344,2]
[408197959,1773215433528,-150.0,0.00018344,2]
[408197960,1773215433537,-150.84360211,0.00018344,2]
[408197961,1773215433547,-500.0,0.00018344,2]
[408197962,1773215433555,-150.0,0.00018399,2]
[408197963,1773215433565,-508.22060755,0.00018399,2]
[408197964,1773215433574,-150.0,0.00018453,2]
[408197965,1773215433583,-296.32,0.0001849,2]
[408197966,1773215433593,-150.0,0.00018508,2]
[408197967,1773215433602,-542.59073283,0.00018562,2]
[408197968,1773215433611,-250.0,0.00018563,2]
[408197969,1773215433621,-2345.4845341,0.00018563,2]
[408197970,1773215433631,-166.66,0.00018659,2]
[408197971,1773215433640,-334.04,0.00018804,2]
[408197972,1773215433649,-500.0,0.00018913,2]
[408197973,1773215433659,-13012.78761151,0.00018914,2]
[408197974,1773215433672,-85380.26408849,0.00018914,2]
[408197975,1773215433682,-1358.62243776,0.00018929,2]
[408197976,1773215433691,-500.0,0.00018973,2]
[408197977,1773215433700,-210.45,0.00018976,2]
[408197978,1773215433709,-297.8225182,0.00018976,2]
[408198042,1773215440744,-2921.1339221,0.00018764,2]
[408198043,1773215440754,-246.97211491,0.00018913,2]
[408198044,1773215440763,-1919.2274818,0.00018976,2]
[408198045,1773215440772,-200.0,0.00018976,2]
[408198046,1773215440781,-500.0,0.00018999,2]
[408198047,1773215440790,-578.20924308,0.00018999,2]
[408198048,1773215440799,-174.61919141,0.00018999,2]
[408198049,1773215440807,-408.4947,0.00019014,2]
[408198050,1773215440817,-58055.6222,0.00019014,2]
[408198051,1773215440826,-166.66,0.00019029,2]
[408198052,1773215440834,-500.0,0.00019054,2]
[408198053,1773215440853,-500.81396462,0.00019073,2]
[408198054,1773215440865,-500.0,0.00019073,2]
[408198055,1773215440875,-2025.0,0.000191,2]
[408198056,1773215440885,-500.0,0.00019109,2]
[408198057,1773215440895,-1696.93223886,0.00019113,2]
[408198058,1773215440904,-20357.69820712,0.0001914,2]
[408198059,1773215440913,-500.0,0.00019164,2]
[408198060,1773215440922,-500.0,0.00019219,2]
[408198061,1773215440931,-500.0,0.00019274,2]
[408198062,1773215440941,-500.0,0.00019329,2]
[408198063,1773215440950,-160.0,0.00019383,2]
[408198064,1773215440959,-172.95802059,0.00019383,2]
[408198065,1773215440969,-500.0,0.00019384,2]
[408198066,1773215440978,-166.66,0.00019398,2]
[408198067,1773215440987,-500.0,0.00019439,2]
[408198068,1773215440997,-500.0,0.00019494,2]
[408198069,1773215441006,-1923.22748136,0.00019508,2]
[408198070,1773215441016,-208.39,0.00019545,2]
[408198071,1773215441025,-259.37361088,0.00019547,2]
[408198072,1773215441034,-600.2919257,0.00019549,2]
[408198073,1773215441044,-3994.538,0.00019677,2]
[408198074,1773215441053,-179.349,0.00019677,2]
[408198075,1773215441063,-334.04,0.000197,2]
[408198076,1773215441072,-1000.0,0.000198,2]
[408198077,1773215441081,-489.17919,0.000198,2]
[408198078,1773215441091,-489.1792,0.000198,2]
[408198079,1773215441100,-200.0,0.0001989,2]
[408198080,1773215441110,-2500.0,0.00019898,2]
[408198081,1773215441119,-472.65020994,0.000199,2]
[408198082,1773215441128,-861.37103307,0.000199,2]
[408198083,1773215441138,-160.61307676,0.000199,2]
[408198084,1773215441147,-177.33230872,0.000199,2]
[408198085,1773215441157,-2815.97643058,0.000199,2]
[408198086,1773215441166,-350.0,0.00019955,2]
[408198087,1773215441175,-150.13270217,0.00019973,2]
[408198088,1773215441184,-151.0,0.00019997,2]
[408198089,1773215441193,-500.0,0.00019997,2]
[408198090,1773215441202,-500.0,0.00019997,2]
[408198091,1773215441211,-500.0,0.00019997,2]
[408198092,1773215441224,-500.0,0.00019997,2]
[408198093,1773215441233,-500.0,0.00019997,2]
[408198094,1773215441242,-500.0,0.00019997,2]
[408198095,1773215441251,-500.0,0.00019997,2]
[408198096,1773215441261,-500.0,0.00019997,2]
[408198097,1773215441270,-500.0,0.00019997,2]
[408198098,1773215441279,-500.0,0.00019997,2]
[408198099,1773215441291,-2691.3679889,0.00019998,2]
[408198100,1773215441300,-500.0,0.00019998,2]
[408198101,1773215441309,-500.0,0.00019998,2]
[408198102,1773215441318,-500.0,0.00019998,2]
[408198103,1773215441329,-314.42910771,0.00019998,2]
[408198104,1773215441340,-504.64296701,0.00019998,2]
[408198105,1773215441349,-500.0,0.00019998,2]
[408198106,1773215441359,-1553.1996831,0.00019998,2]
[408198107,1773215441369,-500.0,0.00019998,2]
[408198108,1773215441378,-300.0,0.00019999,2]
[408198109,1773215441387,-417.14321601,0.00019999,2]
[408198110,1773215441397,-672.07190369,0.00019999,2]
[408198111,1773215441409,-300.0,0.00019999,2]
[408198112,1773215441418,-300.0,0.00019999,2]
[408198113,1773215441428,-500.0,0.00019999,2]
[408198114,1773215441438,-503.86249418,0.00019999,2]
[408198115,1773215441447,-500.0,0.00019999,2]
[408198116,1773215441456,-500.0,0.00019999,2]
[408198117,1773215441465,-500.0,0.00019999,2]
[408198118,1773215441476,-500.0,0.00019999,2]
[408198119,1773215441486,-500.0,0.00019999,2]
[408198120,1773215441495,-500.0,0.00019999,2]
[408198121,1773215441505,-500.0,0.00019999,2]
[408198122,1773215441514,-500.0,0.00019999,2]
[408198123,1773215441524,-500.0,0.00019999,2]
[408198124,1773215441534,-500.0,0.00019999,2]